[Event "44th Chess Olympiad Open 2022"]
[Site "Chennai"]
[Date "2022.08.06"]
[Round "8.14"]
[White "Gomez, John Paul"]
[Black "Mastrovasilis, Athanasios"]
[Result "1/2-1/2"]
[WhiteElo "2451"]
[BlackElo "2527"]
[Annotator "TA"]
[PlyCount "60"]
[EventDate "2022.??.??"]
[TimeControl "60"]

{[%evp 18,60,24,19,18,0,0,0,0,0,14,0,0,0,0,0,0,-10,0,0,0,0,0,0,0,0,0,0,0,0,0,0,
0,0,0,0,0,0,0,0,0,0,0,0,0]} 1. e4 {[%emt 0:00:07]} e5 {[%emt 0:00:28]} 2. Nf3 {
[%emt 0:00:12]} Nc6 {[%emt 0:00:36]} 3. Bb5 {[%emt 0:00:12]} Nf6 {[%emt 0:00:
00]} 4. O-O {[%emt 0:00:14][%cal Yh1f1,Yf1e1,Ye1e5]} Nxe4 {[%emt 0:00:00]} 5.
Re1 {[%emt 0:00:09]} Nd6 {[%emt 0:00:29]} 6. Nxe5 {[%emt 0:00:09]} Be7 {
[%emt 0:00:03]} 7. Bf1 {[%emt 0:00:11]} Nxe5 {[%emt 0:00:13]} 8. Rxe5 {[%emt 0:
00:07]} O-O {[%emt 0:00:05]} 9. d4 {[%emt 0:00:09]} Bf6 {[%emt 0:00:49]} 10.
Re1 {[%emt 0:00:08]} Re8 {[%emt 0:00:10] The position is equal. C67: Ruy Lopez:
Berlin Defence: 4 0-0 Nxe4.} 11. Rxe8+ {[%emt 0:00:41]} Nxe8 {[%emt 0:00:00]}
12. c3 {[%emt 0:00:59]} d5 {[%emt 0:00:38]} 13. Bd3 {[%emt 0:02:47]} g6 {
[%emt 0:02:11]} 14. Bf4 {[%emt 0:00:18]} c6 {[%emt 0:03:03]} 15. Nd2 {[%emt 0:
00:00]} Ng7 {[%emt 0:02:07]} 16. Nf3 {[%emt 0:00:17]} Bf5 {[%emt 0:01:38]} 17.
Be5 {[%emt 0:03:14]} Bxd3 {[%emt 0:14:26] [#]} 18. Qxd3 $146 {[%emt 0:02:25]} (
{Predecessor:} 18. Bxf6 Qxf6 19. Qxd3 Re8 20. Re1 Rxe1+ 21. Nxe1 Qe7 {½-½ 
(21) Ramirez Alvarez,A (2552)-Bruzon Batista,L (2650) Medellin 2017}) 18... Qe7
{[%emt 0:01:07]} 19. Bxf6 {[%emt 0:03:59]} Qxf6 {[%emt 0:01:47]} 20. Re1 {
[%emt 0:00:54]} Re8 {[%emt 0:02:23]} 21. Rxe8+ {[%emt 0:01:55]} Nxe8 $11 {
[%emt 0:00:11] Endgame KQN-KQN} 22. Qe2 {[%emt 0:00:33]} Nd6 {[%emt 0:01:45]}
23. Qe5 {[%emt 0:00:40]} Kg7 {[%emt 0:02:28]} 24. Qxf6+ {[%emt 0:03:32]} Kxf6 {
[%emt 0:00:10] KN-KN} 25. Ne5 {[%emt 0:00:33]} Ke6 {[%emt 0:02:23]} 26. Kf1 {
[%emt 0:01:10]} f6 {[%emt 0:01:20]} 27. Nd3 {[%emt 0:00:00]} h5 {[%emt 0:01:01]
} 28. Ke2 {[%emt 0:00:43]} g5 {[%emt 0:00:21]} 29. Kf3 {[%emt 0:01:49]} a5 {
[%emt 0:22:42]} 30. Nc5+ {[%emt 0:03:32]} Ke7 {[%emt 0:01:24] Not much
happened in this game. Weighted Error Value: White=0.02 (flawless) /Black=0.02
(flawless)} 1/2-1/2

[Event "44th Chess Olympiad Open 2022"]
[Site "Chennai"]
[Date "2022.08.06"]
[Round "8.15"]
[White "Lodici, Lorenzo"]
[Black "Macovei, Andrei"]
[Result "1-0"]
[WhiteElo "2553"]
[BlackElo "2478"]
[Annotator "TA"]
[PlyCount "101"]
[EventDate "2022.??.??"]
[TimeControl "60"]

{[%evp 10,101,-1,-6,14,0,0,3,0,-42,-47,-45,-45,-64,-68,-64,-47,-48,-52,-54,-30,
-62,-21,-33,-27,-26,-20,-28,-20,-31,-20,-15,-14,-6,-11,-16,-13,-16,-17,-2,-17,
-14,-17,-22,-16,-22,-3,-73,-65,-71,-65,-67,95,100,102,95,109,100,97,100,224,
227,234,233,268,240,365,357,361,354,346,309,510,508,665,442,452,448,478,428,
722,727,747,475,451,418,611,554,757,759,659,729,714,660]} 1. f4 {[%emt 0:00:03]
} Nh6 {[%emt 0:06:30]} 2. Nf3 {[%emt 0:00:37]} d5 {[%emt 0:00:30]} 3. g3 {
[%emt 0:00:13]} g6 {[%emt 0:04:49]} 4. Bg2 {[%emt 0:00:05]} Bg7 {[%emt 0:00:03]
} 5. d3 {[%emt 0:02:10]} O-O {[%emt 0:05:06]} 6. O-O {[%emt 0:01:20]} d4 {
[%emt 0:06:52] A03: Bird's Opening with 1...d5.} 7. c3 {[%emt 0:01:22]} c5 {
[%emt 0:02:03]} 8. e4 {[%emt 0:00:53][%cal Ye2e4,Ye4e5]} Nc6 {[%emt 0:00:00] 
[#] The position is equal.} 9. e5 $146 {[%emt 0:15:38]} ({Predecessor:} 9. h3
dxc3 10. bxc3 b6 11. g4 Kh8 12. e5 {½-½ (12) Vavra,P (2350)-Simacek,P (2502)
Czech Republic 2019}) 9... Bf5 {[%emt 0:12:19]} 10. c4 {[%emt 0:08:41]} Qd7 {
[%emt 0:02:06]} 11. Na3 {[%emt 0:04:35]} Nb4 {[%emt 0:06:06]} 12. Ne1 {[%emt 0:
00:22]} f6 {[%emt 0:00:07]} 13. exf6 $1 {[%emt 0:02:16]} exf6 {[%emt 0:00:00]}
14. Nac2 {[%emt 0:00:05]} Nc6 {[%emt 0:03:55]} 15. Rb1 {[%emt 0:12:14]} Rfe8 {
[%emt 0:08:23]} 16. b4 {[%emt 0:02:01]} Bf8 {[%emt 0:00:09][%cal Rc5b4]} 17. b5
{[%emt 0:11:03]} Nd8 {[%emt 0:01:04]} 18. Bf3 {[%emt 0:02:02]} Ndf7 {[%emt 0:
02:21]} 19. Ng2 {[%emt 0:03:43]} (19. Bd5 Bg4 20. Bf3 Nd6 $17) 19... Nd6 {
[%emt 0:01:35]} 20. a4 {[%emt 0:01:52]} Kg7 {[%emt 0:04:50]} 21. a5 {[%emt 0:
05:18]} a6 {[%emt 0:01:38][%cal Ra6b5]} 22. Ba3 {[%emt 0:06:09]} Rec8 {[%emt 0:
03:07][%cal Ra6b5]} 23. b6 {[%emt 0:02:14]} Ndf7 {[%emt 0:00:33]} 24. Na1 {
[%emt 0:02:09]} Re8 {[%emt 0:01:16]} 25. Nb3 {[%emt 0:00:02]} Rac8 {[%emt 0:00:
06]} 26. Qd2 {[%emt 0:05:24]} Bg4 {[%emt 0:00:05]} 27. Bxg4 {[%emt 0:01:29]}
Nxg4 {[%emt 0:00:01]} 28. Rbe1 {[%emt 0:00:41]} (28. Rfe1 $11) 28... Ne3 {
[%emt 0:01:55]} 29. Nxe3 {[%emt 0:03:04]} dxe3 {[%emt 0:00:01]} 30. Qc3 {
[%emt 0:01:56]} ({Much weaker is} 30. Rxe3 Rxe3 31. Qxe3 Qa4 32. Nxc5 Qxa3 33.
Ne6+ (33. Nxb7 $2 Rxc4 34. Rf3 Rc2 $19) 33... Kg8 $17) 30... Rcd8 $2 {[%emt 0:
06:19]} ({Don't play} 30... e2 31. Rf2 $16) (30... Nh6 $1 $15 {keeps the upper
hand.}) 31. Bxc5 $16 {[%emt 0:01:04]} Qxd3 {[%emt 0:02:23]} 32. Bxf8+ {[%emt 0:
00:02]} Kxf8 {[%emt 0:00:08]} 33. Qxd3 {[%emt 0:00:14]} Rxd3 {[%emt 0:00:00]}
34. Nc5 {[%emt 0:00:07][%csl Yb7,Yd3]} Rd4 {[%emt 0:01:36] This costs Black
the game.} (34... e2 $16 35. Nxd3 exf1=Q+ 36. Rxf1 Rc8) 35. Nxb7 $18 {[%emt 0:
00:02]} Rxc4 {[%emt 0:00:04] [#] White must now prevent ...Re7.} 36. Rc1 $1 {
[%emt 0:00:32]} Rb4 {[%emt 0:06:33]} 37. Rb1 {[%emt 0:01:24]} Ree4 {[%emt 0:00:
01]} (37... Rd4 $142 38. Nc5 Rd5) 38. Rfc1 {[%emt 0:01:15] aiming for Nc5.}
Rec4 {[%emt 0:00:49]} 39. Kg2 {[%emt 0:00:02]} Rxb1 {[%emt 0:01:57]} 40. Rxb1 {
[%emt 0:00:01] Endgame KRN-KRN} Ke8 $2 {[%emt 0:01:38] [#]} (40... Rc2+ {
is a better defense.} 41. Kf3 e2) 41. Nc5 $1 {[%emt 0:30:53] Strongly
threatening b7.} Nd8 {[%emt 0:08:47]} (41... Nd6 42. Nxa6) 42. b7 {[%emt 0:00:
00]} Nxb7 {[%emt 0:01:03]} 43. Nxb7 {[%emt 0:00:00] Hoping for Nd6+. KRN-KR}
Kd7 {[%emt 0:02:25] Inhibits Nd6.} 44. Kf3 {[%emt 0:00:00]} Rc3 {[%emt 0:03:01]
} (44... e2 $142 45. Kxe2 Kc7) 45. Rb6 {[%emt 0:00:00][%csl Ya6,Yf6]} Rc6 {
[%emt 0:00:51]} 46. Rb3 {[%emt 0:00:00]} Kc7 {[%emt 0:01:04]} 47. Kxe3 {
[%emt 0:00:00]} Rc2 {[%emt 0:02:38]} (47... Rc4 $142 48. Kd2 Rd4+ 49. Kc3 Ra4)
48. h4 {[%emt 0:00:00] White is clearly winning.} Ra2 {[%emt 0:00:22]} 49. Kd4
{[%emt 0:00:00]} Kc6 {[%emt 0:00:26]} 50. Rb6+ {[%emt 0:00:00]} Kc7 {[%emt 0:
00:05]} 51. Nc5 {[%emt 0:00:00] Weighted Error Value: White=0.21 (precise) /
Black=0.32} 1-0

[Event "44th Chess Olympiad Open 2022"]
[Site "Chennai"]
[Date "2022.08.06"]
[Round "8.15"]
[White "Brunello, Sabino"]
[Black "Ceres, Dragos"]
[Result "1/2-1/2"]
[WhiteElo "2520"]
[BlackElo "2378"]
[Annotator "TA"]
[PlyCount "89"]
[EventDate "2022.??.??"]
[TimeControl "60"]

{[%evp 9,89,22,27,22,23,26,42,13,11,0,20,-7,-12,-10,-7,-10,62,39,58,-114,-111,
-103,-97,-111,-112,-107,-71,-68,-60,-52,-45,-57,41,41,32,30,41,40,35,16,76,78,
76,81,112,84,62,12,38,0,0,0,12,0,0,0,0,0,0,0,10,6,34,34,93,93,95,93,93,93,93,
93,93,93,93,93,93,93,93,74,93,93]} 1. d4 {[%emt 0:00:02]} d5 {[%emt 0:00:13]}
2. c4 {[%emt 0:00:10]} e6 {[%emt 0:00:21]} 3. Nc3 {[%emt 0:02:36]} h6 {[%emt 0:
00:00]} 4. Nf3 {[%emt 0:11:57]} Nf6 {[%emt 0:00:10]} 5. g3 {[%emt 0:00:16]} Bd6
{[%emt 0:03:13]} 6. Bg2 {[%emt 0:01:04] D37: Queen's Gambit Declined: 5 Bf4.}
Nc6 {[%emt 0:01:04]} 7. O-O {[%emt 0:07:21]} O-O {[%emt 0:00:38]} 8. c5 {
[%emt 0:05:09] White is slightly better.} Be7 {[%emt 0:00:09]} 9. Rb1 {[%emt 0:
00:00]} Ne4 {[%emt 0:06:37]} 10. Qc2 {[%emt 0:05:47]} e5 {[%emt 0:03:53]} 11.
Nxe4 {[%emt 0:01:17]} (11. Nxe5 {looks sharper.} Nxd4 12. Qd3 Bxc5 13. Be3)
11... dxe4 {[%emt 0:00:05]} 12. Qxe4 {[%emt 0:00:05] Threatens to win with d5.}
({Don't play} 12. Nxe5 Nxd4 13. Qd1 (13. Qxe4 $2 Bf5 $19) 13... Bf6 $17) 12...
f5 {[%emt 0:02:21] [#]} ({Better is} 12... exd4 $11 13. b4 Re8) 13. Qe3 $146 {
[%emt 0:09:38]} ({Predecessor:} 13. Qc2 e4 14. Ne5 Nxd4 15. Qd1 Bxc5 16. b4 Bb6
17. e3 Ne6 18. Bb2 Qxd1 19. Rfxd1 {½-½ (28) Kowalski,I (2356)-Torngren,G 
(2282) Krakow 2022}) 13... e4 {[%emt 0:06:40]} 14. Nd2 {[%emt 0:03:41]} (14.
Qb3+ $1 $14 {was forced to keep a grip.} Kh7 15. d5) 14... Be6 $17 {[%emt 0:00:
00]} ({Not} 14... Nxd4 15. Nb3 Nc6 16. Bd2 $15) 15. b4 {[%emt 0:11:35][%cal
Yg3g4]} Bg5 {[%emt 0:16:38]} ({Much weaker is} 15... Nxd4 $6 16. Bb2 Bf6 17.
Nxe4 fxe4 18. Rfd1 $11) 16. f4 {[%emt 0:03:13]} Bf6 {[%emt 0:00:21]} 17. Nb3 {
[%emt 0:02:47]} Nxd4 {[%emt 0:04:19]} 18. Bb2 {[%emt 0:00:28][%cal Rb2d4]} Bxb3
{[%emt 0:03:46]} 19. axb3 {[%emt 0:00:21] aiming for Rbd1.} Nc2 {[%emt 0:03:01]
[%csl Yb4,Ye3]} 20. Qc1 {[%emt 0:00:30] And now Rd1 would win.} Bd4+ {[%emt 0:
00:52]} ({Black should try} 20... Nxb4 $15 21. Rd1 Nd5) 21. Kh1 $1 $14 {
[%emt 0:00:48]} Ne3 {[%emt 0:00:10] [#] Prevents Rd1.} 22. Rd1 {[%emt 0:06:44]}
Bxb2 {[%emt 0:12:02]} (22... Nxd1 $2 23. Qc4+ Rf7 24. Bxd4 $18) 23. Qxe3 {
[%emt 0:00:17]} Qf6 {[%emt 0:00:03]} 24. g4 {[%emt 0:00:47]} Rad8 {[%emt 0:00:
00]} (24... Qc3 $11 25. Qxc3 Bxc3) 25. Rxd8 $16 {[%emt 0:03:12]} Rxd8 {[%emt 0:
00:00]} 26. gxf5 {[%emt 0:00:12]} c6 {[%emt 0:07:02]} 27. Qxe4 {[%emt 0:03:29]
[%cal Yb4b5]} a6 {[%emt 0:00:27]} 28. Qe6+ {[%emt 0:10:00]} (28. Bf3 $14) 28...
Kf8 {[%emt 0:00:37]} 29. e4 {[%emt 0:01:32]} Qxe6 {[%emt 0:02:35]} 30. fxe6 $11
{[%emt 0:00:01] Endgame KRB-KRB} Rd2 {[%emt 0:01:39]} 31. e5 {[%emt 0:02:09]}
Rc2 {[%emt 0:01:50]} 32. Be4 {[%emt 0:02:52]} Rc1+ {[%emt 0:00:00]} 33. Kg2 {
[%emt 0:00:02]} Rxb1 {[%emt 0:00:13]} 34. Bxb1 {[%emt 0:00:01] KB-KB} Ke7 {
[%emt 0:02:18]} 35. Kf3 {[%emt 0:00:29]} Kxe6 {[%emt 0:00:37]} 36. Kg4 {
[%emt 0:00:41]} Bc3 {[%emt 0:00:31] [#]} (36... Ke7 $14) 37. Bf5+ $1 $16 {
[%emt 0:00:14] White is better.} Kf7 {[%emt 0:00:08]} 38. Bc8 {[%emt 0:00:05]}
Bxb4 {[%emt 0:00:04]} 39. Bxb7 {[%emt 0:00:04]} a5 {[%emt 0:01:10]} 40. Bxc6 {
[%emt 0:00:06] Black must now prevent Bd5+.} Bxc5 {[%emt 0:00:04]} 41. Bd5+ {
[%emt 0:30:18]} Ke7 {[%emt 0:30:48]} 42. h4 {[%emt 0:00:16][%cal Yh2h4,Yh4h5]}
Be3 {[%emt 0:01:17]} 43. Kf5 {[%emt 0:00:14]} Bc1 {[%emt 0:00:40]} 44. Bc4 {
[%emt 0:00:04] White is more active.} Bd2 {[%emt 0:00:05]} 45. h5 {[%emt 0:00:
38] Weighted Error Value: White=0.15 (very precise) /Black=0.17 (very precise)}
1/2-1/2

[Event "44th Chess Olympiad Open 2022"]
[Site "Chennai"]
[Date "2022.08.06"]
[Round "8.15"]
[White "Schitco, Ivan"]
[Black "Vocaturo, Daniele"]
[Result "1/2-1/2"]
[WhiteElo "2490"]
[BlackElo "2616"]
[Annotator "TA"]
[PlyCount "68"]
[EventDate "2022.??.??"]
[TimeControl "60"]

{[%evp 17,68,8,12,0,16,4,19,14,30,12,14,14,22,25,37,21,37,16,35,20,23,0,16,-41,
-28,-18,-21,-31,-33,-31,-8,-12,-15,-6,-9,-39,-37,-37,0,-12,-1,-14,-18,-84,0,0,
0,0,0,0,5014,-2158,0]} 1. c4 {[%emt 0:00:03]} c5 {[%emt 0:00:42]} 2. Nf3 {
[%emt 0:00:33]} Nc6 {[%emt 0:00:58]} 3. d4 {[%emt 0:00:21]} cxd4 {[%emt 0:00:
00]} 4. Nxd4 {[%emt 0:00:05]} Nf6 {[%emt 0:00:41]} 5. Nc3 {[%emt 0:00:15]} e6 {
[%emt 0:01:22]} 6. e4 {[%emt 0:00:28]} Bb4 {[%emt 0:03:31]} 7. Nxc6 {[%emt 0:
00:00]} bxc6 {[%emt 0:00:07]} 8. Bd3 {[%emt 0:00:07]} e5 {[%emt 0:02:26]} 9.
O-O {[%emt 0:00:14]} O-O {[%emt 0:00:22]} 10. h3 $1 {[%emt 0:00:04] is
currently scoring better than 10.Bg5. B44: Sicilian: Taimanov: 5 Nb5.} d6 {
[%emt 0:04:16]} 11. Na4 {[%emt 0:00:54]} Ba5 {[%emt 0:05:53]} 12. a3 {[%emt 0:
00:00] The position is equal.} Bc7 {[%emt 0:01:36]} 13. Qf3 {[%emt 0:17:59]} h6
{[%emt 0:05:02]} 14. b4 {[%emt 0:06:55]} Be6 {[%emt 0:07:04]} 15. Be3 {[%emt 0:
00:00] [#]} Kh8 $146 {[%emt 0:04:50]} ({Predecessor:} 15... Nd7 16. Rfd1 Nb6
17. Nb2 Nd7 18. Rac1 Qe7 19. Qe2 Bb6 20. Na4 Bxe3 21. Qxe3 Rfd8 {1-0 (35)
Oparin,G (2652)-Fier,A (2560) Chess.com INT 2020}) 16. Qe2 {[%emt 0:08:06]} g5
{[%emt 0:06:45]} 17. g4 {[%emt 0:04:20]} Rg8 {[%emt 0:08:33]} 18. f3 {[%emt 0:
00:00]} Nd7 {[%emt 0:01:17]} 19. b5 {[%emt 0:05:33]} Ba5 {[%emt 0:06:46]} 20.
c5 {[%emt 0:08:14]} ({White should try} 20. bxc6 $11 Nb8 21. Rac1) 20... cxb5
$15 {[%emt 0:04:56]} 21. Bxb5 {[%emt 0:00:34] [#] And now Rfd1 would win.} Nxc5
{[%emt 0:00:28]} 22. Nxc5 {[%emt 0:00:48]} dxc5 {[%emt 0:00:07]} 23. Rac1 {
[%emt 0:04:01] Inhibits Bc3.} Bb6 {[%emt 0:02:42]} 24. Bc4 {[%emt 0:04:25]} Qe7
{[%emt 0:01:01]} 25. Bxe6 {[%emt 0:02:24]} Qxe6 {[%emt 0:01:12]} 26. Bxc5 {
[%emt 0:00:49]} Rgc8 {[%emt 0:02:08]} 27. Bxb6 {[%emt 0:01:01]} axb6 {[%emt 0:
00:00]} 28. Qb2 {[%emt 0:02:31]} Qd6 {[%emt 0:04:55] White should prevent ...
Rxc1.} 29. Rb1 {[%emt 0:07:20]} Rc6 {[%emt 0:04:31]} 30. Rfd1 {[%emt 0:04:18]}
(30. Rbd1 $11 Qc5+ 31. Kg2) 30... Qf6 {[%emt 0:01:49]} ({Much weaker is} 30...
Qc5+ $6 31. Kg2 Qc2+ 32. Rd2 Qxb2 33. Rdxb2 $11) (30... Qxa3 $17 31. Kg2 (31.
Qxe5+ Kg8 $17) 31... Qe7) 31. Kg2 $11 {[%emt 0:01:34]} Rac8 {[%emt 0:04:07] [#]
Threatens to win with ...Rc2+.} 32. Rbc1 {[%emt 0:00:17] Prevents Rc2+.} Rxc1 {
[%emt 0:01:36]} 33. Rxc1 {[%emt 0:00:03]} Rc3 {[%emt 0:00:04]} 34. Rc2 $4 (34.
Qxc3 $18 Kg7 35. Rb1) 34... Rxc2+ $2 {[%emt 0:00:31] Weighted Error Value:
White=0.45/Black=0.13 (very precise)} ({Better is} 34... Qxf3+ $19 35. Kh2 Qf4+
36. Kg1 Rxh3) 1/2-1/2

[Event "44th Chess Olympiad Open 2022"]
[Site "Chennai"]
[Date "2022.08.06"]
[Round "8.15"]
[White "Hamitevici, Vladimir"]
[Black "Sonis, Francesco"]
[Result "1-0"]
[WhiteElo "2473"]
[BlackElo "2543"]
[Annotator "RC"]
[PlyCount "105"]
[EventDate "2022.??.??"]
[TimeControl "60"]

1. d4 {[%emt 0:00:02]} Nf6 {[%emt 0:00:05]} 2. c4 {[%emt 0:00:06]} e6 {[%emt 0:
00:00]} 3. Nc3 {[%emt 0:00:11]} Bb4 {[%emt 0:00:08]} 4. Nf3 {[%emt 0:00:46]} d5
{[%emt 0:00:22]} 5. Qa4+ {[%emt 0:01:19]} Nc6 {[%emt 0:00:06]} 6. e3 {[%emt 0:
00:00]} O-O {[%emt 0:00:27]} 7. Qc2 {[%emt 0:01:08]} b6 {[%emt 0:08:02]} 8. Bd2
{[%emt 0:00:47]} Na5 {[%emt 0:06:26]} 9. c5 {[%emt 0:02:26]} bxc5 {[%emt 0:00:
00]} 10. a3 {[%emt 0:01:51]} cxd4 {[%emt 0:05:34]} 11. axb4 {[%emt 0:05:55]}
dxc3 {[%emt 0:00:05]} 12. Bxc3 {[%emt 0:01:00]} Nb7 {[%emt 0:00:06]} 13. Bd3 {
[%emt 0:04:23]} Nd6 {[%emt 0:01:32]} 14. O-O {[%emt 0:05:32]} Bd7 {[%emt 0:00:
00]} 15. Bxf6 {[%emt 0:16:50]} gxf6 {[%emt 0:00:08]} 16. Bxh7+ {[%emt 0:05:11]}
Kg7 {[%emt 0:01:49]} 17. Bd3 {[%emt 0:00:07]} e5 {[%emt 0:07:10]} 18. Nd2 {
[%emt 0:02:46]} c6 {[%emt 0:05:08]} 19. Ra6 {[%emt 0:05:12]} Qb8 {[%emt 0:00:
00]} 20. Qc5 {[%emt 0:03:29]} e4 {[%emt 0:06:09]} 21. Be2 {[%emt 0:01:15]} Rh8
{[%emt 0:00:06]} 22. f4 {[%emt 0:08:48]} exf3 {[%emt 0:05:29]} 23. Rxf3 {
[%emt 0:05:39]} Rh6 {[%emt 0:03:25]} 24. Rg3+ {[%emt 0:09:25]} Kh8 {[%emt 0:00:
00]} 25. Bd3 {[%emt 0:00:13]} Nb7 {[%emt 0:05:45]} 26. Qd4 {[%emt 0:02:58]} Nd8
{[%emt 0:03:01]} 27. Nf3 {[%emt 0:03:54]} Bc8 {[%emt 0:03:44]} 28. Ra4 {
[%emt 0:04:16]} Ne6 {[%emt 0:05:09]} 29. Qc3 {[%emt 0:01:07]} Qb6 {[%emt 0:00:
00]} 30. Bc2 {[%emt 0:04:35]} Ng7 {[%emt 0:03:50]} 31. Nd4 {[%emt 0:01:51]} Nh5
{[%emt 0:02:09]} 32. Rf3 {[%emt 0:00:07]} Bg4 {[%emt 0:01:04]} 33. Rf2 {
[%emt 0:00:33]} Rg8 {[%emt 0:01:20]} 34. Qxc6 {[%emt 0:01:09]} Qb8 {[%emt 0:00:
00]} 35. Bf5 {[%emt 0:02:27]} Bxf5 {[%emt 0:04:53]} 36. Nxf5 {[%emt 0:00:01]}
Rh7 {[%emt 0:00:01]} 37. Qd6 {[%emt 0:00:44]} Qc8 {[%emt 0:00:35]} 38. Ra1 {
[%emt 0:00:29]} Qb7 {[%emt 0:01:39]} 39. Rc1 {[%emt 0:00:18]} Qb5 {[%emt 0:00:
00]} 40. Qc5 {[%emt 0:01:02]} Qb8 {[%emt 0:00:04]} 41. Qd6 {[%emt 0:01:07]} Qb5
{[%emt 0:00:08]} 42. Rd1 {[%emt 0:06:58]} a5 {[%emt 0:02:50]} 43. bxa5 {
[%emt 0:01:16]} Qxa5 {[%emt 0:00:05]} 44. b4 {[%emt 0:02:00]} Qa3 {[%emt 0:00:
00]} 45. Rxd5 {[%emt 0:01:07]} Qc3 {[%emt 0:00:24]} 46. Rdd2 {[%emt 0:03:31]}
Ng7 {[%emt 0:00:53]} 47. Nxg7 {[%emt 0:03:55]} Rhxg7 {[%emt 0:00:03]} 48. Qd4 {
[%emt 0:04:28]} Qxd4 {[%emt 0:00:07]} 49. Rxd4 {[%emt 0:00:52]} Rg6 {[%emt 0:
00:00]} 50. b5 {[%emt 0:00:47]} Rb8 {[%emt 0:00:06]} 51. Rb4 {[%emt 0:00:20]}
Rb6 {[%emt 0:00:04]} 52. Rf5 {[%emt 0:00:24]} Rg8 {[%emt 0:00:05]} 53. Rh4+ {
[%emt 0:00:11]} 1-0

[Event "44th Chess Olympiad Open 2022"]
[Site "Chennai"]
[Date "2022.08.06"]
[Round "8.16"]
[White "Quesada Perez, Luis Ernesto"]
[Black "Fluvia Poyatos, Jordi"]
[Result "1-0"]
[WhiteElo "2549"]
[BlackElo "2451"]
[Annotator "RC"]
[PlyCount "85"]
[EventDate "2022.??.??"]
[TimeControl "60"]

1. d4 {[%emt 0:00:05]} Nf6 {[%emt 0:00:30]} 2. Bg5 {[%emt 0:00:21]} Ne4 {
[%emt 0:01:50]} 3. Bf4 {[%emt 0:00:04]} d5 {[%emt 0:01:59]} 4. e3 {[%emt 0:00:
00]} e6 {[%emt 0:11:38]} 5. Bd3 {[%emt 0:00:15]} Nf6 {[%emt 0:00:16]} 6. Nd2 {
[%emt 0:00:26]} c5 {[%emt 0:01:19]} 7. c3 {[%emt 0:00:05]} Nc6 {[%emt 0:00:32]}
8. Ngf3 {[%emt 0:00:38]} Be7 {[%emt 0:04:49]} 9. Ne5 {[%emt 0:04:20]} Nd7 {
[%emt 0:07:08]} 10. h4 {[%emt 0:15:50]} cxd4 {[%emt 0:14:43]} 11. exd4 {
[%emt 0:00:43]} Ncxe5 {[%emt 0:01:15]} 12. dxe5 {[%emt 0:00:06]} Qc7 {[%emt 0:
00:00]} 13. Nf3 {[%emt 0:04:15]} Nc5 {[%emt 0:02:01]} 14. Bc2 {[%emt 0:02:53]}
Bd7 {[%emt 0:05:56]} 15. O-O {[%emt 0:00:41]} h6 {[%emt 0:02:10]} 16. Re1 {
[%emt 0:02:20]} Bc6 {[%emt 0:04:38]} 17. h5 {[%emt 0:03:29]} Qb6 {[%emt 0:00:
00]} 18. Rb1 {[%emt 0:02:36]} Ne4 {[%emt 0:00:47]} 19. Nd4 {[%emt 0:01:39]} Bc5
{[%emt 0:08:19]} 20. Qg4 {[%emt 0:03:10]} Bxd4 {[%emt 0:04:55]} 21. cxd4 {
[%emt 0:00:09]} O-O-O {[%emt 0:01:58]} 22. Be3 {[%emt 0:01:12]} Qc7 {[%emt 0:
00:00]} 23. a4 {[%emt 0:12:33]} Qe7 {[%emt 0:01:29]} 24. b4 {[%emt 0:01:35]}
Nc3 {[%emt 0:01:29]} 25. Rb3 {[%emt 0:02:38]} Nxa4 {[%emt 0:01:24]} 26. b5 {
[%emt 0:00:11]} Bd7 {[%emt 0:00:43]} 27. Ra1 {[%emt 0:06:06]} Nb6 {[%emt 0:00:
00]} 28. Rxa7 {[%emt 0:01:21]} Kb8 {[%emt 0:00:27]} 29. Ra1 {[%emt 0:00:25]}
Nc4 {[%emt 0:00:47]} 30. Bd3 {[%emt 0:02:59]} Nxe3 {[%emt 0:01:37]} 31. fxe3 {
[%emt 0:00:10]} b6 {[%emt 0:00:47]} 32. Rba3 {[%emt 0:09:30]} Bc8 {[%emt 0:00:
00]} 33. Ra8+ {[%emt 0:00:12]} Kc7 {[%emt 0:00:11]} 34. Qe2 {[%emt 0:00:23]}
Bb7 {[%emt 0:01:16]} 35. Qc2+ {[%emt 0:00:13]} Kd7 {[%emt 0:00:12]} 36. R1a7 {
[%emt 0:00:21]} Ke8 {[%emt 0:00:19]} 37. Rxd8+ {[%emt 0:02:37]} Kxd8 {[%emt 0:
00:00]} 38. Qc3 {[%emt 0:02:17]} Qc7 {[%emt 0:01:44]} 39. Qb4 {[%emt 0:00:05]}
Kd7 {[%emt 0:01:43]} 40. Ra1 {[%emt 0:00:37]} Rc8 {[%emt 0:00:11]} 41. Rf1 {
[%emt 0:30:14]} Ke8 {[%emt 0:04:03]} 42. Bg6 {[%emt 0:00:00]} Rd8 {[%emt 0:00:
00]} 43. Rf4 {[%emt 0:00:00]} 1-0